bitfinex-derivatives/quotes_BNBF0:USTF0_20251027
["timestamp","ask_amount","ask_price","bid_price","bid_amount"]
[1761562935156,0.85827527,1159.1,1156.6,0.64308798]
[1761562936658,0.85827527,1159.2,1156.6,0.64308798]
[1761562938266,0.15027107,1160.1,1156.6,0.64308798]
[1761562938267,0.85827527,1159.3,1156.6,0.64308798]
[1761562938461,0.85827527,1159.1,1156.6,0.64308798]
[1761562939166,0.85827527,1159.2,1156.6,0.64308798]
[1761562940265,0.85827527,1159.3,1156.5,0.64308798]
[1761562940460,0.85827527,1159.2,1156.5,0.64308798]
[1761562940766,0.85827527,1159.2,1156.6,0.992]
[1761562941260,0.85827527,1159.3,1156.6,0.992]
[1761562944362,0.85827527,1159.2,1156.6,0.992]
[1761562945967,0.85827527,1159.3,1156.6,0.992]
[1761562947166,0.85827527,1159.2,1156.6,0.992]
[1761562947465,0.85827527,1159.1,1156.6,0.992]
[1761562951266,0.85827527,1159.2,1156.6,0.992]
[1761562951472,0.85827527,1159.3,1156.6,0.992]
[1761562953174,0.85827527,1159.2,1156.6,0.992]
[1761562961287,0.85827527,1158.8,1156.6,0.992]
[1761562961487,1.2874129,1159.1,1156.6,0.992]
[1761562961488,0.85827527,1158.9,1156.6,0.992]
[1761562964189,0.85827527,1158.9,1156.6,1.62568112]
[1761562964389,0.85827527,1158.9,1156.6,0.992]
[1761562965088,0.85827527,1158.8,1156.6,1.62568112]
[1761562965791,0.85827527,1158.9,1156.6,0.992]
[1761562966191,0.85827527,1158.8,1156.6,1.62568112]
[1761562969190,0.85827527,1158.7,1156.6,1.62568112]
[1761562971095,0.85827527,1158.6,1156.7,0.63368112]
[1761562971896,0.85827527,1158.8,1156.6,1.62568112]
[1761562973195,0.85827527,1158.7,1156.6,1.62568112]
[1761562973697,0.85827527,1158.8,1156.6,1.62568112]
[1761562973897,0.85827527,1158.9,1156.6,1.62568112]
[1761562974194,0.85827527,1158.8,1156.6,1.62568112]
[1761562975198,0.85827527,1158.8,1156.7,0.63368112]
[1761562977099,0.85827527,1158.7,1156.7,0.63368112]
[1761562978002,0.85827527,1158.8,1156.7,0.63368112]
[1761562978201,1.2874129,1159.1,1156.6,0.992]
[1761562978202,0.85827527,1158.7,1156.9,0.63368112]
[1761562978807,0.85827527,1158.5,1157.0,0.63368112]
[1761562981502,0.85827527,1158.4,1157.1,0.63368112]
[1761562982104,0.85827527,1158.3,1157.1,0.63368112]
[1761562982302,2.1456881,1159.4,1157.1,0.63368112]
[1761562982303,0.85827527,1158.4,1157.1,0.63368112]
[1761562983302,0.85827527,1158.5,1157.1,0.63368112]
[1761562984405,0.85827527,1158.4,1157.1,0.63368112]
[1761562986409,0.85827527,1158.4,1157.2,1.119]
[1761562990117,0.85827527,1158.3,1157.2,1.119]
[1761562993216,0.85827527,1158.3,1157.2,1.75268112]
[1761562994218,0.85827527,1158.5,1157.2,1.119]
[1761562994617,0.85827527,1158.6,1157.2,1.119]
[1761562996114,0.85827527,1158.7,1157.2,1.119]
[1761563000426,0.85827527,1158.8,1157.2,1.119]
[1761563001725,0.85827527,1158.7,1157.2,1.119]
[1761563003324,0.85827527,1158.8,1157.2,1.119]
[1761563004122,0.85827527,1158.7,1157.2,1.119]
[1761563007922,0.85827527,1158.6,1157.2,1.119]
[1761563009624,0.85827527,1158.5,1157.2,1.119]
[1761563011830,0.85827527,1158.6,1157.2,1.119]
[1761563012030,0.85827527,1158.8,1157.4,0.64020065]
[1761563012329,0.85827527,1159.1,1157.2,1.75920065]
[1761563012527,0.85827527,1159.2,1157.3,0.64020065]
[1761563013331,0.85827527,1158.8,1157.3,0.64020065]
[1761563014430,0.85827527,1158.9,1157.3,0.64020065]
[1761563015027,0.85827527,1158.8,1157.3,0.64020065]
[1761563019432,0.85827527,1158.6,1157.2,1.75920065]
[1761563019732,0.85827527,1158.5,1157.2,1.119]
[1761563020333,0.85827527,1158.5,1157.2,1.75920065]
[1761563022037,0.85827527,1158.4,1157.2,1.75920065]
[1761563025843,0.85827527,1158.5,1157.2,1.75920065]
[1761563027139,0.85827527,1158.4,1157.2,1.75920065]
[1761563028341,0.85827527,1158.5,1157.2,1.75920065]
[1761563030142,0.85827527,1158.6,1157.2,1.75920065]
[1761563036046,0.85827527,1158.7,1157.2,1.75920065]
[1761563036448,1.2874129,1158.9,1157.2,1.75920065]
[1761563036449,0.85827527,1158.6,1157.2,1.75920065]
[1761563037046,0.85827527,1158.7,1157.2,1.75920065]
[1761563037251,0.85827527,1158.7,1157.2,0.64020065]
[1761563039948,0.85827527,1158.6,1157.2,0.64020065]
[1761563040654,0.85827527,1158.7,1157.2,0.64020065]
[1761563040851,0.85827527,1158.7,1157.3,0.799]
[1761563045758,2.1456881,1160.1,1157.3,1.43920065]
[1761563045759,0.85827527,1158.6,1157.3,1.43920065]
[1761563046862,0.85827527,1158.6,1157.3,0.799]
[1761563047064,0.85827527,1158.6,1157.3,1.43980105]
[1761563049059,0.85827527,1158.7,1157.3,1.43980105]
[1761563051964,0.85827527,1158.6,1157.3,0.799]
[1761563052164,0.85827527,1158.6,1157.3,1.43980105]
[1761563052365,0.85827527,1158.7,1157.3,0.799]
[1761563056565,0.85827527,1158.8,1157.3,0.799]
[1761563056766,0.85827527,1158.7,1157.3,0.799]
[1761563057064,0.85827527,1158.8,1157.3,0.799]
[1761563057363,0.85827527,1158.7,1157.3,0.799]
[1761563057663,0.85827527,1158.8,1157.3,0.799]
[1761563059469,0.85827527,1158.8,1157.3,1.44008]
[1761563059770,0.85827527,1158.7,1157.3,1.44008]
[1761563061671,0.85827527,1158.8,1157.4,0.64108]
[1761563062766,0.85827527,1158.8,1157.3,0.799]
[1761563062767,0.85827527,1158.8,1157.3,1.44008]
[1761563063173,0.85827527,1158.8,1157.4,0.64108]
[1761563063974,0.85827527,1158.9,1157.4,0.64108]
[1761563064173,0.85827527,1159.0,1157.4,0.64108]
[1761563065272,0.85827527,1159.1,1157.4,0.64108]
[1761563066474,0.85827527,1159.0,1157.4,0.64108]
[1761563067671,0.85827527,1158.9,1157.4,0.64108]
[1761563068374,0.85827527,1158.8,1157.4,0.64108]
[1761563068675,0.85827527,1158.9,1157.4,0.64108]
[1761563068870,0.85827527,1158.8,1157.5,0.64108]
[1761563069074,2.1456881,1160.3,1157.5,0.64108]
[1761563069075,0.85827527,1158.7,1157.5,0.64108]
[1761563069571,0.85827527,1159.4,1157.3,1.44008]
[1761563070174,0.85827527,1158.7,1157.3,0.799]
[1761563071474,0.85827527,1158.6,1157.3,0.799]
[1761563074175,0.85827527,1159.0,1157.3,0.799]
[1761563074378,0.85827527,1158.2,1157.3,0.799]
[1761563074878,0.85827527,1158.3,1157.3,0.799]
[1761563076380,0.85827527,1158.4,1157.3,0.799]
[1761563076981,0.85827527,1158.3,1157.3,0.799]
[1761563077982,0.85827527,1158.0,1157.3,0.799]
[1761563078380,0.85827527,1157.9,1157.3,0.799]
[1761563079385,0.85827527,1157.8,1157.3,0.799]
[1761563081085,0.85827527,1157.9,1157.3,0.799]
[1761563083892,0.85827527,1157.9,1156.4,0.64108]
[1761563084290,0.85827527,1158.0,1156.3,0.64108]
[1761563087690,0.85827527,1158.0,1156.4,1.271]
[1761563088191,0.85827527,1158.1,1156.4,1.271]
[1761563091393,2.1456881,1159.2,1156.4,1.271]
[1761563091394,0.85827527,1158.0,1156.4,1.271]
[1761563091894,1.2874129,1158.2,1156.4,1.271]
[1761563091895,0.85827527,1157.9,1156.4,1.271]
[1761563092298,0.85827527,1157.8,1156.4,1.271]
[1761563092794,0.85827527,1157.9,1156.4,1.271]
[1761563094698,0.85827527,1157.8,1156.4,1.271]
[1761563096002,0.85827527,1157.9,1156.4,1.271]
[1761563097399,0.85827527,1158.0,1156.4,1.271]
[1761563097998,0.85827527,1158.1,1156.4,1.271]
[1761563100001,0.85827527,1158.7,1156.4,1.271]
[1761563100204,0.85827527,1158.6,1156.4,1.271]
[1761563101802,0.85827527,1158.1,1156.4,1.271]
[1761563102000,0.85827527,1157.9,1156.4,1.271]
[1761563102906,0.85827527,1157.8,1156.4,1.271]
[1761563103303,0.85827527,1157.9,1156.4,1.271]
[1761563104008,0.85827527,1157.8,1156.4,1.271]
[1761563104207,0.85827527,1157.7,1156.4,1.271]
[1761563104608,0.85827527,1157.8,1156.4,1.271]
[1761563107709,0.85827527,1157.9,1156.4,1.271]
[1761563109810,0.85827527,1158.4,1156.4,1.271]
[1761563110710,0.85827527,1158.3,1156.4,1.271]
[1761563111413,0.85827527,1158.4,1156.4,1.271]
[1761563111814,0.85827527,1158.3,1155.5,0.15026783]
[1761563112110,0.85827527,1158.5,1155.5,0.15026783]
[1761563112313,0.85827527,1158.4,1155.5,0.15026783]
[1761563112512,0.85827527,1158.5,1155.5,0.15026783]
[1761563113213,0.85827527,1158.4,1155.5,0.15026783]
[1761563114217,0.85827527,1158.4,1155.6,0.85]
[1761563118023,0.85827527,1158.3,1155.6,0.85]
[1761563119525,0.85827527,1158.2,1155.6,0.85]
[1761563121126,0.85827527,1158.1,1155.6,0.85]
[1761563121626,0.85827527,1157.9,1155.6,0.85]
[1761563122222,0.85827527,1157.8,1155.6,0.85]
[1761563122521,0.85827527,1158.0,1155.6,0.85]
[1761563123822,0.85827527,1157.9,1155.6,0.85]
[1761563126125,0.85827527,1157.8,1155.6,0.85]
[1761563128322,0.85827527,1157.7,1155.6,0.85]
[1761563130623,0.85827527,1157.6,1155.6,1.48705743]
[1761563131624,0.85827527,1157.7,1155.7,0.63705743]
[1761563133229,0.85827527,1157.6,1155.7,0.63705743]
[1761563133729,0.85827527,1158.1,1155.8,0.63705743]
[1761563134831,0.85827527,1158.1,1155.7,0.63705743]
[1761563135031,0.85827527,1158.0,1155.7,0.63705743]
[1761563135331,0.85827527,1157.9,1155.7,0.63705743]
[1761563136531,0.85827527,1157.8,1155.7,0.63705743]
[1761563136731,0.85827527,1157.8,1155.8,0.63705743]
[1761563137232,0.85827527,1157.7,1155.8,0.63705743]
[1761563139632,0.85827527,1157.8,1155.8,0.63705743]
[1761563139831,0.85827527,1157.7,1155.8,0.63705743]
[1761563142835,0.85827527,1157.8,1155.8,0.63705743]
[1761563145040,0.85827527,1157.8,1155.9,0.63705743]
[1761563146637,0.85827527,1157.6,1156.0,0.63705743]
[1761563147743,0.85827527,1157.6,1155.6,2.148885]
[1761563147744,0.85827527,1157.5,1156.1,0.63705743]
[1761563151144,0.85827527,1157.4,1156.2,0.63705743]
[1761563153956,0.85827527,1157.5,1156.2,0.63705743]
[1761563156153,0.85827527,1157.6,1156.2,0.63705743]
[1761563156857,0.85827527,1157.7,1156.2,0.63705743]
[1761563159355,0.85827527,1157.7,1156.3,0.896]
[1761563162361,0.85827527,1157.8,1156.3,0.896]
[1761563162558,0.85827527,1157.7,1156.4,0.63705743]
[1761563163259,0.85827527,1157.7,1156.3,1.53305743]
[1761563164663,0.85827527,1157.7,1156.4,0.63705743]
[1761563165063,0.85827527,1158.0,1156.3,1.53305743]
[1761563165359,0.85827527,1158.0,1156.3,0.896]
[1761563166062,0.85827527,1158.1,1156.3,0.896]
[1761563174767,0.85827527,1157.9,1156.3,0.896]
[1761563176172,0.85827527,1158.0,1156.3,0.896]
[1761563176369,0.85827527,1157.8,1156.3,0.896]
[1761563176870,0.85827527,1157.6,1156.3,0.896]
[1761563177173,0.85827527,1157.8,1156.3,0.896]
[1761563178574,0.85827527,1157.9,1156.3,0.896]
[1761563183377,0.85827527,1157.8,1156.3,0.896]
[1761563185374,0.85827527,1157.7,1156.3,0.896]
[1761563185774,0.85827527,1157.8,1156.3,0.896]
[1761563187075,0.85827527,1157.7,1156.3,0.896]
[1761563189181,0.85827527,1157.6,1156.3,0.896]
[1761563189578,0.85827527,1157.7,1156.3,0.896]
[1761563190377,0.85827527,1157.6,1156.3,0.896]
[1761563193484,0.85827527,1157.4,1156.3,0.896]
[1761563193687,0.85827527,1157.4,1156.3,1.53305743]
[1761563193886,0.85827527,1157.5,1156.3,0.896]
[1761563194284,0.85827527,1157.4,1156.3,1.53305743]
[1761563194588,0.85827527,1157.4,1156.3,0.896]
[1761563197390,0.85827527,1157.4,1156.3,1.53305743]
[1761563197690,0.85827527,1157.6,1156.3,0.896]
[1761563199786,0.85827527,1157.7,1156.3,0.896]
[1761563201993,0.85827527,1157.8,1156.3,0.896]
[1761563203294,0.85827527,1157.7,1156.3,0.896]
[1761563203496,0.85827527,1157.8,1156.3,0.896]
[1761563204496,0.85827527,1158.5,1156.6,0.63705743]
[1761563204792,0.85827527,1158.1,1156.6,0.63705743]
[1761563205496,0.85827527,1158.1,1156.5,0.63705743]
[1761563205894,0.85827527,1158.1,1156.6,0.63705743]
[1761563206296,0.85827527,1158.2,1156.5,0.63705743]
[1761563206792,0.85827527,1158.0,1156.6,0.63705743]
[1761563206994,0.85827527,1157.8,1156.6,0.63705743]
[1761563207493,0.85827527,1157.9,1156.6,0.63705743]
[1761563207795,0.85827527,1157.8,1156.7,0.701]
[1761563207995,0.85827527,1157.7,1156.7,0.701]
[1761563209299,0.85827527,1157.9,1156.7,0.701]
[1761563209997,0.85827527,1157.8,1156.7,0.701]
[1761563210694,0.85827527,1157.7,1156.7,0.701]
[1761563211398,0.85827527,1157.9,1156.7,0.701]
[1761563212998,0.85827527,1157.8,1156.7,0.701]
[1761563213199,0.85827527,1157.7,1156.7,0.701]
[1761563214796,0.85827527,1157.8,1156.7,0.701]
[1761563215098,0.85827527,1157.9,1156.7,0.701]
[1761563215996,0.85827527,1157.8,1156.7,0.701]
[1761563216794,0.85827527,1157.7,1156.7,0.701]
[1761563216999,0.85827527,1157.8,1156.7,0.701]
[1761563219999,0.85827527,1157.6,1156.7,0.701]
[1761563220203,0.85827527,1157.5,1156.7,0.701]
[1761563220699,0.85827527,1157.8,1156.7,0.701]
[1761563221103,0.85827527,1157.9,1156.7,0.701]
[1761563221999,0.85827527,1157.7,1156.7,0.701]
[1761563222203,0.85827527,1157.9,1156.7,0.701]
[1761563223701,0.85827527,1157.9,1156.3,1.90505743]
[1761563224203,0.85827527,1157.8,1156.4,0.63705743]
[1761563224400,0.85827527,1157.9,1156.5,0.63705743]
[1761563224600,0.85827527,1157.8,1156.5,0.63705743]
[1761563226005,0.85827527,1157.9,1156.6,0.63705743]
[1761563226405,0.85827527,1158.0,1156.7,0.63705743]
[1761563226706,0.85827527,1158.0,1156.8,0.702]
[1761563228308,0.85827527,1158.1,1156.8,0.702]
[1761563229008,0.85827527,1158.0,1156.8,0.702]
[1761563229207,0.85827527,1158.1,1156.8,0.702]
[1761563231108,0.85827527,1158.3,1156.8,0.702]
[1761563232113,0.85827527,1158.4,1156.8,0.702]
[1761563234708,1.2874129,1158.7,1156.8,0.702]
[1761563234914,0.85827527,1158.4,1156.8,0.702]
[1761563235315,0.85827527,1158.3,1156.8,0.702]
[1761563235811,0.85827527,1158.2,1156.8,0.702]
[1761563236110,0.85827527,1158.1,1156.8,0.702]
[1761563237316,0.85827527,1157.9,1156.8,0.702]
[1761563237517,0.85827527,1158.0,1156.8,0.702]
[1761563237717,1.2874129,1158.2,1156.8,0.702]
[1761563237718,0.85827527,1158.1,1156.8,0.702]
[1761563239316,0.85827527,1158.3,1156.8,0.702]
[1761563239518,0.85827527,1158.4,1156.8,0.702]
[1761563240321,0.85827527,1158.6,1156.9,0.63705743]
[1761563240920,0.85827527,1158.8,1156.8,1.33905743]
[1761563243123,0.85827527,1158.8,1156.8,0.702]
[1761563243925,0.85827527,1158.9,1156.8,1.33905743]
[1761563244125,0.85827527,1159.0,1156.8,0.702]
[1761563244825,0.85827527,1159.0,1156.8,1.33905743]
[1761563245123,0.85827527,1158.8,1157.0,0.63705743]
[1761563245323,0.85827527,1159.1,1157.1,0.63705743]
[1761563245519,0.85827527,1159.3,1157.0,0.63705743]
[1761563246624,0.85827527,1159.4,1157.1,0.63705743]
[1761563246820,0.85827527,1159.5,1157.0,0.63705743]
[1761563247022,0.85827527,1159.5,1157.1,0.63705743]
[1761563247224,0.85827527,1159.6,1157.1,0.63705743]
[1761563247825,0.85827527,1159.5,1157.1,0.63705743]
[1761563248223,0.85827527,1159.6,1157.1,0.63705743]
[1761563248429,0.85827527,1159.2,1157.3,0.63705743]
[1761563248627,0.85827527,1159.8,1157.4,0.63705743]
[1761563249229,0.85827527,1159.9,1157.4,0.63705743]
[1761563250129,0.85827527,1159.9,1157.3,0.63705743]
[1761563250826,0.85827527,1160.0,1157.3,0.63705743]
[1761563252129,0.85827527,1160.1,1157.3,0.63705743]
[1761563253125,0.85827527,1160.1,1157.2,0.63705743]
[1761563253825,0.85827527,1160.3,1157.2,0.63705743]
[1761563254030,0.85827527,1160.2,1157.3,0.63705743]
[1761563254226,0.85827527,1160.3,1157.3,0.63705743]
[1761563255131,0.85827527,1160.3,1157.2,0.63705743]
[1761563255827,0.85827527,1160.4,1157.2,0.63705743]
[1761563256235,0.85827527,1160.4,1157.3,0.701]
[1761563256434,0.85827527,1160.2,1157.3,0.701]
[1761563256729,0.85827527,1159.9,1157.3,1.33805743]
[1761563256930,0.85827527,1159.8,1157.3,1.33805743]
[1761563259132,0.85827527,1159.8,1157.3,0.701]
[1761563259330,0.85827527,1159.7,1157.3,0.701]
[1761563259531,0.85827527,1159.9,1157.3,0.701]
[1761563259835,0.85827527,1160.0,1157.3,0.701]
[1761563263235,2.14568817,1160.0,1157.3,0.701]
[1761563263436,0.85827527,1159.6,1157.3,0.701]
[1761563263635,0.85827527,1159.5,1157.3,0.701]
[1761563264940,0.85827527,1159.4,1157.3,0.701]
[1761563265535,0.85827527,1159.3,1157.3,0.701]
[1761563266535,0.85827527,1159.4,1157.3,0.701]
[1761563267741,0.85827527,1159.3,1157.3,0.701]
[1761563268443,0.85827527,1159.2,1157.3,0.701]
[1761563269141,0.85827527,1159.2,1156.7,0.63705743]
[1761563269439,0.85827527,1159.2,1156.8,0.63705743]
[1761563270742,0.85827527,1159.3,1156.8,0.63705743]
[1761563271044,0.85827527,1159.3,1156.6,0.86592337]
[1761563271240,0.85827527,1159.9,1156.9,0.63415953]
[1761563272238,0.85827527,1159.9,1157.0,0.7]
[1761563276343,0.85827527,1159.9,1157.1,0.916]
[1761563277446,0.85827527,1159.8,1157.1,0.916]
[1761563278850,0.85827527,1159.7,1157.1,0.916]
[1761563280546,0.85827527,1159.6,1157.1,0.916]
[1761563280745,0.85827527,1159.4,1157.1,1.55015953]
[1761563282247,0.85827527,1159.3,1157.1,1.55015953]
[1761563282949,0.85827527,1159.9,1157.1,0.916]
[1761563283154,0.85827527,1160.0,1157.1,0.916]
[1761563283450,0.85827527,1159.8,1157.1,0.916]
[1761563284049,0.85827527,1159.9,1157.1,0.916]
[1761563285150,0.85827527,1159.8,1157.1,0.916]
[1761563287056,0.85827527,1159.8,1157.2,0.7]
[1761563287453,0.85827527,1159.9,1157.2,0.7]
[1761563288659,0.85827527,1159.8,1157.2,0.7]
[1761563290357,0.85827527,1159.6,1157.2,0.7]
[1761563290560,0.85827527,1159.4,1157.2,0.7]
[1761563290862,0.85827527,1159.0,1157.2,0.7]
[1761563292360,0.85827527,1159.0,1157.3,0.837]
[1761563294867,0.85827527,1158.9,1157.3,0.837]
[1761563297165,0.85827527,1158.8,1157.3,0.837]
[1761563298170,0.85827527,1158.7,1157.3,0.837]
[1761563302170,0.85827527,1158.6,1157.3,0.837]
[1761563304075,0.85827527,1158.9,1157.3,0.837]
[1761563304272,0.85827527,1158.6,1157.3,0.837]
[1761563304470,0.85827527,1158.8,1157.3,0.837]
[1761563306469,0.85827527,1158.7,1157.3,0.837]
[1761563307670,0.15015047,1161.0,1157.3,0.837]
[1761563307671,0.85827527,1158.8,1157.3,0.837]
[1761563308373,0.85827527,1158.9,1157.3,0.837]
[1761563308572,0.85827527,1158.8,1157.3,0.837]
[1761563309677,0.85827527,1158.8,1157.4,0.699]
[1761563311475,0.85827527,1158.9,1157.4,0.699]
[1761563315579,2.1456881,1160.7,1157.4,0.699]
[1761563315580,0.85827527,1158.7,1157.4,0.699]
[1761563317487,0.85827527,1159.0,1157.4,0.699]
[1761563317881,0.85827527,1159.1,1157.4,0.699]
[1761563318285,0.85827527,1158.7,1157.4,0.699]
[1761563318483,0.85827527,1158.6,1157.4,0.699]
[1761563319284,0.85827527,1158.3,1157.4,0.699]
[1761563319482,0.85827527,1158.4,1157.4,0.699]
[1761563321390,0.85827527,1158.5,1157.4,0.699]
[1761563322189,0.85827527,1158.6,1157.4,0.699]
[1761563324494,0.85827527,1158.8,1157.4,0.699]
[1761563325891,0.85827527,1158.7,1157.4,0.699]
[1761563328797,0.85827527,1158.8,1157.4,0.699]
[1761563329297,0.85827527,1158.6,1157.4,0.699]
[1761563329594,0.85827527,1158.3,1157.4,0.699]
[1761563330600,0.85827527,1158.4,1157.4,0.699]
[1761563333397,1.2874129,1158.7,1157.4,0.699]
[1761563333398,0.85827527,1158.5,1157.4,0.699]
[1761563333595,0.85827527,1158.6,1157.4,0.699]
[1761563336096,0.85827527,1158.7,1157.4,0.699]
[1761563336401,0.85827527,1158.8,1157.4,0.699]
[1761563338298,0.85827527,1158.7,1157.4,0.699]
[1761563338502,2.1456881,1160.6,1157.3,0.837]
[1761563338503,0.85827527,1158.6,1157.3,0.837]
[1761563338704,0.85827527,1158.7,1157.3,0.837]
[1761563338999,0.85827527,1158.6,1157.3,0.837]
[1761563339901,0.85827527,1158.5,1157.3,0.837]
[1761563342503,0.85827527,1158.9,1157.3,0.837]
[1761563342702,0.85827527,1158.9,1157.4,0.698]
[1761563342907,0.85827527,1158.8,1157.4,0.698]
[1761563343409,0.85827527,1158.5,1157.4,0.698]
[1761563344707,0.85827527,1158.6,1157.4,0.698]
[1761563345004,0.85827527,1158.5,1157.4,0.698]
[1761563348108,0.85827527,1158.7,1157.4,0.698]
[1761563349407,0.85827527,1159.0,1157.4,0.698]
[1761563349910,0.85827527,1159.1,1157.4,0.698]
[1761563351008,0.85827527,1159.1,1157.5,1.077]
[1761563353619,0.85827527,1158.9,1157.5,1.077]
[1761563353818,0.85827527,1159.0,1157.5,1.077]
[1761563354116,0.85827527,1158.9,1157.5,1.077]
[1761563355821,0.85827527,1158.8,1157.5,1.077]
[1761563360126,0.85827527,1158.9,1157.5,1.077]
[1761563361225,0.85827527,1159.0,1157.5,1.077]
[1761563364430,0.85827527,1158.9,1157.5,1.077]
[1761563364632,0.85827527,1159.2,1157.5,1.077]
[1761563365633,0.85827527,1159.2,1157.6,0.698]
[1761563367330,0.85827527,1159.3,1157.6,0.698]
[1761563368336,0.85827527,1159.4,1157.6,0.698]
[1761563369237,0.85827527,1159.5,1157.6,0.698]
[1761563373937,0.15015047,1161.0,1157.6,0.698]
[1761563373938,0.85827527,1159.4,1157.6,0.698]
[1761563374135,0.85827527,1159.2,1157.6,0.698]
[1761563374339,0.85827527,1159.1,1157.6,0.698]
[1761563374540,0.85827527,1159.0,1157.6,0.698]
[1761563376842,0.85827527,1158.9,1157.6,0.698]
[1761563377739,0.85827527,1159.0,1157.6,0.698]
[1761563378041,0.85827527,1158.9,1157.6,0.698]
[1761563379242,0.85827527,1159.3,1157.6,0.698]
[1761563382447,0.85827527,1159.3,1157.5,1.077]
[1761563386142,0.85827527,1159.1,1157.5,1.077]
[1761563386342,0.85827527,1159.0,1157.6,0.697]
[1761563386744,0.85827527,1159.1,1157.6,0.697]
[1761563387248,0.85827527,1159.0,1157.6,0.697]
[1761563387444,0.85827527,1158.9,1157.6,0.697]
[1761563387849,0.85827527,1159.0,1157.6,0.697]
[1761563390250,0.85827527,1159.1,1157.6,0.697]
[1761563390651,4.2977337,1161.7,1157.6,0.697]
[1761563390652,0.85827527,1159.0,1157.6,0.697]
[1761563390847,0.85827527,1159.1,1157.6,0.697]
[1761563393554,0.85827527,1159.2,1157.6,0.697]
[1761563394155,1.2874129,1159.4,1157.6,0.697]
[1761563394156,0.85827527,1159.1,1157.6,0.697]
[1761563394854,0.85827527,1159.2,1157.6,0.697]
[1761563397553,0.85827527,1159.1,1157.6,0.697]
[1761563397753,0.85827527,1159.3,1157.6,0.697]
[1761563401560,0.85827527,1159.2,1157.6,0.697]
[1761563401956,0.85827527,1159.1,1157.6,0.697]
[1761563405959,0.85827527,1159.2,1157.6,0.697]
[1761563406159,0.85827527,1159.3,1157.6,0.697]
[1761563407063,0.85827527,1159.4,1157.6,0.697]
[1761563407362,0.85827527,1159.3,1157.6,0.697]
[1761563407963,0.85827527,1159.5,1157.6,0.697]
[1761563408766,0.85827527,1159.6,1157.6,0.697]
[1761563409165,0.85827527,1159.5,1157.6,0.697]
[1761563409365,0.85827527,1159.4,1157.6,0.697]
[1761563409767,0.85827527,1159.0,1157.6,1.33602983]
[1761563410467,0.85827527,1159.0,1157.7,0.953]
[1761563410864,0.85827527,1159.3,1157.7,0.953]
[1761563413472,0.85827527,1159.2,1157.7,0.953]
[1761563417174,0.85827527,1159.3,1157.7,0.953]
[1761563418172,1.2874129,1159.6,1157.7,0.953]
[1761563418173,0.85827527,1159.2,1157.7,0.953]
[1761563419076,0.85827527,1159.3,1157.8,0.696]
[1761563419276,0.85827527,1159.0,1157.8,0.696]
[1761563420074,0.85827527,1158.9,1157.8,0.696]
[1761563420277,0.85827527,1158.8,1157.8,0.696]
[1761563420879,0.85827527,1158.9,1157.8,0.696]
[1761563422780,0.85827527,1158.8,1157.8,0.696]
[1761563423281,0.85827527,1158.7,1157.8,0.696]
[1761563423978,0.85827527,1158.8,1157.8,0.696]
[1761563425686,1.2874129,1159.1,1157.8,0.696]
[1761563425687,0.85827527,1158.9,1157.8,0.696]
[1761563428385,0.85827527,1159.0,1157.8,0.696]
[1761563430184,0.85827527,1158.8,1157.8,0.696]
[1761563430683,0.85827527,1158.7,1157.8,0.696]
[1761563430888,0.85827527,1158.6,1157.8,0.696]
[1761563431689,0.85827527,1158.5,1157.8,0.696]
[1761563432285,0.85827527,1158.6,1157.8,0.696]
[1761563432786,0.85827527,1158.7,1157.8,0.696]
[1761563437391,0.85827527,1158.6,1157.8,0.696]
[1761563438292,0.85827527,1159.0,1157.8,0.696]
[1761563438491,0.85827527,1158.9,1157.8,0.696]
[1761563438788,0.85827527,1158.3,1157.8,0.696]
[1761563441090,0.85827527,1158.3,1157.7,0.953]
[1761563442392,0.85827527,1158.4,1157.7,0.953]
[1761563443195,0.85827527,1158.5,1157.7,0.953]
[1761563443592,0.85827527,1158.9,1157.7,0.953]
[1761563444096,0.85827527,1159.0,1157.7,0.953]
[1761563444696,0.85827527,1159.1,1157.8,0.696]
[1761563444896,0.85827527,1159.0,1157.8,0.696]
[1761563446396,0.85827527,1159.1,1157.8,0.696]
[1761563447500,0.85827527,1159.3,1157.8,0.696]
[1761563447700,0.85827527,1158.9,1157.8,0.696]
[1761563448000,0.85827527,1159.1,1157.8,0.696]
[1761563448600,0.85827527,1159.0,1157.8,0.696]
[1761563449901,0.85827527,1159.2,1157.8,0.696]
[1761563451702,0.85827527,1159.3,1157.8,0.696]
[1761563452204,0.85827527,1159.4,1157.8,0.696]
[1761563452499,0.85827527,1159.5,1157.9,0.934]
[1761563454503,0.85827527,1159.0,1157.9,0.934]
[1761563454699,0.85827527,1159.2,1157.9,0.934]
[1761563455306,0.85827527,1159.3,1157.9,0.934]
[1761563455504,0.85827527,1159.2,1157.9,0.934]
[1761563455804,0.85827527,1159.3,1157.9,0.934]
[1761563456604,0.85827527,1159.2,1157.9,0.934]
[1761563458209,0.85827527,1159.3,1157.9,0.934]
[1761563461503,0.85827527,1159.2,1157.9,0.934]
[1761563461906,0.85827527,1159.3,1157.9,0.934]
[1761563462907,0.85827527,1159.2,1157.9,0.934]
[1761563463204,0.85827527,1159.3,1157.9,0.934]
[1761563463507,0.85827527,1159.4,1157.9,0.934]
[1761563464410,0.85827527,1159.4,1157.8,0.696]
[1761563466709,0.15019616,1160.6,1157.8,0.696]
[1761563466710,0.85827527,1159.3,1157.8,0.696]
[1761563467311,0.85827527,1159.3,1157.9,1.123]
[1761563468114,0.85827527,1159.4,1157.9,1.123]
[1761563468712,0.85827527,1159.3,1157.9,1.123]
[1761563470010,0.85827527,1159.4,1157.9,1.123]
[1761563470714,0.85827527,1159.5,1157.9,1.123]
[1761563475015,0.85827527,1159.6,1157.9,1.123]
[1761563475515,0.85827527,1159.6,1158.0,0.695]
[1761563480213,0.85827527,1159.5,1158.0,0.695]
[1761563481716,0.85827527,1159.4,1158.0,0.695]
[1761563483620,0.85827527,1159.3,1158.0,0.695]